Cogmind - Beta 13 @@@ ROGUE MODE // 2024.04.03 @ 12:49:28 Player: f_ Result: Destroyed by D-53 Grenadier with Mini Grenade Launcher Performance ------------- Evolutions (0) 0 Regions Visited (2) 400 Robots Destroyed (15) 75 Value Destroyed (425) 425 Prototype IDs (0) 0 Alien Tech Used (0) 0 Bonus (0) 0 TOTAL SCORE: 900 Bonus ------- None Cogmind --------- Core Integrity 0/250 Matter 18/300 Energy 100/100 System Corruption 0% Temperature Cool (0) Movement Core (100) Ox1 Location -10/Mines Parts ------- > --- POWER (1) -------- (None) > --- PROPULSION (2) --- (None) > --- UTILITY (2) ------ Small Storage Unit > --- WEAPON (2) ------- (None) > --- INVENTORY (8) ---- Ion Engine Light Ion Engine Light Ion Engine Aluminum Leg Flight Unit Light Assault Rifle Light Assault Rifle Datajack Peak State ------------ > --- POWER ------------ Light Nuclear Core > --- PROPULSION ------- Aluminum Leg Aluminum Leg > --- UTILITY ---------- Small Storage Unit > --- WEAPON ----------- Grenade Launcher > --- INVENTORY -------- Ion Engine Light Ion Engine Light Ion Engine Flight Unit Light Assault Rifle Light Assault Rifle Datajack [Rating: 7] Favorites ----------- Power Ion Engine Engine Ion Engine Power Core Light Nuclear Core Propulsion Aluminum Leg Leg Aluminum Leg Wheel Wheel Utility Small Storage Unit Storage Small Storage Unit Weapon Assault Rifle Energy Gun Medium Laser Ballistic Gun Assault Rifle Launcher Grenade Launcher Build | -11 -10 -10 ------- Run | Yrd Mat Min Slots Evolved . | . . . Power . | . . . Propulsion . | . . . Utility . | . . . Weapon . | . . . Parts Attached 11 | 6 3 2 Power 2 | 1 . 1 Engine 1 | 1 . . Core 1 | . . 1 Reactor . | . . . Propulsion 5 | 2 2 1 Treads . | . . . Leg 3 | . 2 1 Wheel 2 | 2 . . Hover . | . . . Flight . | . . . Utility 1 | 1 . . Device . | . . . Storage 1 | 1 . . Processor . | . . . Hackware . | . . . Protection . | . . . Artifact . | . . . Weapon 3 | 2 1 . Energy Gun 1 | 1 . . Energy Cannon . | . . . Ballistic Gun 1 | 1 . . Ballistic Cannon . | . . . Launcher 1 | . 1 . Special Weapon . | . . . Impact Weapon . | . . . Slashing Weapon . | . . . Piercing Weapon . | . . . Special Melee Weapon . | . . . Unidentified Prototypes . | . . . Parts Lost 8 | . 3 5 Power 1 | . . 1 Propulsion 4 | . 2 2 Utility . | . . . Weapon 3 | . 1 2 Highest Loss Streak 4 | . 1 4 To Critical Strikes . | . . . Average Slot Usage (%) 76 | . 82 66 Engine 11 | . 14 8 Core 1 | . . 4 Leg 21 | . 18 25 Wheel 4 | . 6 . Storage 14 | . 14 14 Energy Gun 4 | . 7 . Ballistic Gun 9 | . 14 . Launcher 8 | . 6 12 Naked Turns . | . . . Heaviest Build 15 | 14 15 13 Greatest Support 20 | 20 20 20 Greatest Overweight (x) 4 | . 4 . Average Overweight (x) . | . . . Largest Inventory Capacity 8 | 8 8 8 Average Capacity 7 | 6 8 8 Most Carried 8 | 5 5 8 Average Carried 3 | 2 2 6 Final Capacity 8 | 8 8 8 Final Carried 8 | 2 3 8 Class Distribution -------------------- 100% | Mutant Dominant Class ---------------- Mutant | -10/Materials Mutant | -10/Mines Resources | -11 -10 -10 ----------- Run | Yrd Mat Min Matter Collected 212 | 55 120 37 Remotely . | . . . Salvage Created 321 | . 283 38 Parts 29 | . 21 8 Haulers Intercepted . | . . . Recyclers Shooed . | . . . Parts Field Recycled . | . . . Retrieved Matter . | . . . Parts Self-Destructed . | . . . Prevented . | . . . Kills | -11 -10 -10 ------- Run | Yrd Mat Min Combat Hostiles Destroyed 13 | . 8 5 Guns 6 | . 6 . AOE 7 | . 2 5 Classes Destroyed 4 | . 3 1 Worker 1 | . 1 . Builder 1 | . 1 . Swarmer 3 | . . 3 Grunt 10 | . 8 2 Best Kill Streak 4 | . 4 3 Combat Bots Only 3 | . 2 3 Max Kills in Single Turn 2 | . 2 2 Gunslinging . | . . . Exploded 2 | . 1 2 Melee . | . . . Uniques/NPCs Destroyed . | . . . Combat | -11 -10 -10 -------- Run | Yrd Mat Min Hostile Shots Fired 73 | . 44 29 Missed 15 | . 8 7 Damage Taken 991 | . 526 465 Core 255 | . 123 132 Absorbed by Shields . | . . . Core Remaining (%) 100 | 100 . . Volleys Fired 43 | . 33 10 Largest 2 | . 2 1 Hottest 70 | . 70 30 Shots Fired 72 | . 62 10 Gun 58 | . 58 . Cannon . | . . . Launcher 14 | . 4 10 Special . | . . . Kinetic 29 | . 29 . Thermal 29 | . 29 . Explosive 14 | . 4 10 Electromagnetic . | . . . Robot Hit Streak 6 | . 6 4 Robot Miss Streak 4 | . 4 3 Penetration Max . | . . . Secondary Targets . | . . . Shots Hit Robots 40 | . 36 4 Core Hits 34 | . 19 15 Critical Kills . | . . . Critical Parts Destroyed . | . . . Critical Strikes 2 | . 2 . Burn 2 | . 2 . Melee Attacks . | . . . Impact . | . . . Slashing . | . . . Piercing . | . . . Sneak Attacks . | . . . Combat Hostiles . | . . . Follow-up Attacks . | . . . Damage Inflicted 1208 | . 657 551 Guns 447 | . 447 . Cannons . | . . . Explosions 758 | . 207 551 Melee . | . . . Ramming 3 | . 3 . Kinetic 183 | . 183 . Thermal 344 | . 344 . Explosive 678 | . 127 551 Electromagnetic . | . . . Impact . | . . . Slashing . | . . . Piercing . | . . . Highest Corruption . | . . . Average Corruption . | . . . Corruption Purged . | . . . Corruption Blocked . | . . . Overload Shots . | . . . Overflow Damage 24 | . 24 . Projectiles . | . . . Explosions 24 | . 24 . Melee . | . . . Knockbacks . | . . . Impact . | . . . Kinetic . | . . . Secondary . | . . . Self-Inflicted Damage 119 | . 70 49 Shots 5 | . 2 3 Rammed . | . . . Targets Rammed 1 | . 1 . Kicked 1 | . 1 . Crushed . | . . . Highest Temperature 141 | . 141 4 Average Temperature 60 | . 62 4 Received Heat Transfer 297 | . 270 27 Siege Activations . | . . . Robots Corrupted . | . . . Combat Hostiles . | . . . Parts Fried . | . . . Impact Corruptions . | . . . Robots Melted . | . . . Combat Hostiles . | . . . Parts Melted 1 | . 1 . Heat Transferred 1025 | . 1025 . Parts Sabotaged . | . . . Parts Stolen . | . . . Parts Stripped . | . . . Power Chain Reactions . | . . . Alert | -11 -10 -10 ------- Run | Yrd Mat Min Peak Influence 274 | . 225 274 Initial 87 | . . 87 Average 146 | . 126 218 Maximum Alert Level 1 | . 1 1 Low Security (%) 57 | 100 57 48 Level 1 42 | . 42 51 Level 2 . | . . . Level 3 . | . . . Level 4 . | . . . Level 5 . | . . . High Security . | . . . Max Security . | . . . Squads Dispatched 1 | . 1 . Investigation 1 | . 1 . Extermination . | . . . Reinforcement . | . . . Assault . | . . . Garrison . | . . . Intercept . | . . . Searches Triggered . | . . . Construction Impeded . | . . . Haulers Reinforced . | . . . Active Scanning Responses . | . . . Cargo Convoy Interrupts . | . . . Stealth | -11 -10 -10 --------- Run | Yrd Mat Min Distress Signals . | . . . Communications Jammed . | . . . Distress Signals . | . . . Times Spotted 30 | . 13 17 Peak Tracking Total 12 | . 3 12 Tactical Retreats . | . . . Traps | -11 -10 -10 ------- Run | Yrd Mat Min Traps Triggered 1 | . 1 . Indirectly . | . . . Trap Hack Attempts . | . . . Triggered . | . . . Disarmed . | . . . Reprogrammed . | . . . Reused . | . . . Traps Extracted . | . . . Installed . | . . . Triggered . | . . . Machines | -11 -10 -10 ---------- Run | Yrd Mat Min Machines Disabled 1 | . 1 . Max in Single Turn 1 | . 1 . Machines Repaired . | . . . Machines Dismantled . | . . . Machines Sabotaged . | . . . Overloaded Fab Kills . | . . . Hacking | -11 -10 -10 --------- Run | Yrd Mat Min Machines Accessed 6 | . 6 . Terminals 6 | . 6 . Fabricators . | . . . Repair Stations . | . . . Recycling Units . | . . . Scanalyzers . | . . . Garrison Access . | . . . Total Hacks 11 | . 11 . Successful 2 | . 2 . Failed 9 | . 9 . Catastrophic 4 | . 4 . Database Lockouts . | . . . Manual 10 | . 10 . Terminals 11 | . 11 . Fabricators . | . . . Repair Stations . | . . . Recycling Units . | . . . Scanalyzers . | . . . Garrison Access . | . . . Terminal Hacks 1 | . 1 . Terminal Index 1 | . 1 . Fabricator Hacks . | . . . Repair Station Hacks . | . . . Recycling Unit Hacks . | . . . Scanalyzer . | . . . Garrison Access Hacks . | . . . Unauthorized Hacks 1 | . 1 . Terminals 1 | . 1 . Botnet 1 | . 1 . Fabricators . | . . . Repair Stations . | . . . Recycling Units . | . . . Scanalyzers . | . . . Garrison Access . | . . . Data Cores Recovered . | . . . Used . | . . . Hacking Detections 6 | . 6 . Full Trace Events . | . . . Feedback Events . | . . . Feedback Blocked . | . . . Robot Schematics Acquired . | . . . Robots Built . | . . . Authchips . | . . . Time . | . . . Total Robot Build Rating . | . . . Part Schematics Acquired . | . . . Parts Built . | . . . Authchips . | . . . Time . | . . . Total Part Build Rating . | . . . Parts Repaired . | . . . Time . | . . . Parts Recycled . | . . . Recycled Matter . | . . . Retrieved Matter . | . . . Retrieved Components . | . . . Parts Scanalyzed . | . . . Part Schematics Acquired . | . . . Parts Damaged . | . . . Bothacking | -11 -10 -10 ------------ Run | Yrd Mat Min Used RIF Installer . | . . . Robots Hacked . | . . . Non-combat . | . . . Combat . | . . . Robot Hacks Applied . | . . . Relay Couplers Released . | . . . Fabnet Peak Effective % . | . . . Robots Rewired . | . . . Allies Hacked . | . . . Hacks Repelled . | . . . Allies | -11 -10 -10 -------- Run | Yrd Mat Min Total Allies . | . . . Largest Group . | . . . Highest-Rated Group . | . . . Highest-Rated Ally . | . . . Total Orders . | . . . Ally Attacks . | . . . Total Damage . | . . . Kills . | . . . Allies Corrupted . | . . . Allies Melted . | . . . Intel | -11 -10 -10 ------- Run | Yrd Mat Min Robot Analysis Total . | . . . Derelict Logs Recovered 1 | . . 1 Drone Launches . | . . . Drone Recoveries . | . . . Exploration | -11 -10 -10 ------------- Run | Yrd Mat Min Turns Passed 583 | 41 357 185 Spaces Moved 387 | 40 216 131 Core 18 | 15 3 . Treads . | . . . Legs 281 | . 150 131 Wheels 88 | 25 63 . Hover . | . . . Flight . | . . . Fastest Speed 50 | 50 80 120 Average Speed 109 | 68 110 120 Slowest Speed 250 | 80 250 120 Overloaded Moves . | . . . Propulsion Burnouts . | . . . Robots Hopped . | . . . Cave-ins Triggered . | . . . Exploration Rate (%) 35 | 3 59 44 Regions Visited 2 Branch Regions 1 Pre-discovered Areas 1 | . . 1 Known Exits Taken . | . . . Unknown Exits Taken 2 | 1 1 . Scrap Searched 1 | . . 1 Spaces Dug . | . . . Terrain Destroyed 87 | . 18 69 Melee . | . . . Projectile . | . . . AOE 87 | . 18 69 Terrain Rammed . | . . . Walls Destroyed . | . . . Machines Disabled . | . . . Actions | -11 -10 -10 --------- Run | Yrd Mat Min Total 473 | 53 272 148 Wait 16 | . 16 . Move 385 | 39 215 131 Hop . | . . . Pick Up 17 | 8 4 5 Fast Attach . | . . . Attach 9 | 6 3 . Detach . | . . . Swap 2 | . . 2 Drop . | . . . Fire 43 | . 33 10 Melee . | . . . Ram . | . . . Kick 1 | . 1 . Crush . | . . . Escape Stasis . | . . . Rewire . | . . . Trap . | . . . Miscellaneous . | . . . Route ------- -11/Scrapyard -10/Materials -10/Mines (discovered 1 exit: [*Mat]) History --------- Turn | Location | Event 21 | -11/Scrapyard | Discovered new exit (range 16) 42 | -11/Scrapyard | Entered Materials 317 | -10/Materials | Build established: Mutant 381 | -10/Materials | Discovered new exit (range 16) 399 | -10/Materials | Entered Mines 403 | -10/Mines | Core integrity fell below 50% 425 | -10/Mines | Learned location of Storage (-8) 452 | -10/Mines | Discovered new exit (range 5) 548 | -10/Mines | Assembled infested the area 565 | -10/Mines | Core integrity fell below 20% 584 | -10/Mines | Destroyed by D-53 Grenadier with Mini Grenade Launcher Last Messages --------------- 00515_ K-01 Serf collects debris. 00548_ ALERT: Infestation in the mines, dispatching Demolisher response squad. 00559_ Aluminum Leg destroyed. 00560_ Lgt. Nuclear Core destroyed. 00561_ Grenade Launcher destroyed. 00565_ as-26642 powers down. 00565_ as-32439 powers down. 00565_ as-18232 powers down. 00565_ as-63553 powers down. 00565_ as-78445 powers down. 00565_ as-88121 powers down. 00565_ as-98631 powers down. 00565_ as-49866 powers down. 00565_ as-38796 powers down. 00565_ as-75098 powers down. 00580_ C-30 ARC bursts open, deploying its payload. 00580_ D-53 Grenadier unfolds itself. 00584_ Aluminum Leg destroyed. Map ----- +----------------------------------------------------+ | ?????????????????????????? #???????????? | | ???????????????????????????? #???????????? | | #???????????????????????????? #???????????? | | ####??????????????????????????# ##??????????? | | # ##???????????????????# ????# #??????????? | | #???????????????????# ?????# #??????????? | | #???????????????????# ????## ##??????????? | | #???????????????????# ?????# ###???????????? | | ##???????????????????# ?????# #?????????????? | | #???????????????????# ?????# #?????????????? | | ###???????????????????# ?????# #?????????????? | | #???????????????????## ##???# #?????????????? | | ####???????????????????# #???# #?????????????? | | ##?????????????????????# ##??# #?????????????? | | #?????????????????????# #### #?????????????? | | ##????????????????????# #?????????????? | | #????????????????????## #?????????????? | | ##????????????????????# #?????????????? | | #????????????#####??## ##?????????????? | | #???????????## ### ####??????????????? | | ##???????????# ##????????????????? | | #????????????# #????????????????? | | #????????????## #?????????????????? | | ##?????????????# #?????????????????? | | #??????????????## #?????????????????? | | #???????????????## @ #?????????????????? | | #????????????????#### dd ##?????????????????? | | !#???????????????????## #??????????????????? | | *#????????????????????# %##??????????????????? | | #????????????????????# ##?????????????????? | | =#???????????????????## ##????????????????? | | #############????#### ##???????????????? | | ## ##?## #???????????????? | | ######## ## ### #???????????????? | | ???## ## ### #???????????????? | | ???# ## #???????????????? | | ???# ### ?????????????? | | ## ### ## ?????????????? | | % k##?## ##### ????????????? | | #???? #?????????????????? | | # ##### #???? #?????????????????? | | ?# #?# #????? #?????????????????? | | ??## #####?## #?????#?????????????????? | | ????## ???????## #??????????????????????? | | ?????# ????????#### #??????????????????????? | | ?????# ???????????## ##??????????????????????? | | ?????# ?????????????# ##???????????????????????? | | ????? ??????????????## #????????????????????????? | | ?????##???????????????? #????????????????????????? | | ????????????????????????#????????????????????????? | +----------------------------------------------------+ Best States ------------- Heat Dissipation 25 Energy Generation 14 Energy Capacity 250 Matter Stores 180 Matter Capacity 300 Sight Range 16 Terrain Scan Density 10 Evasion (%) 55 Item Schematics ----------------- None Robot Schematics ------------------ None Fabricated ------------ Nothing Alien Tech Used ----------------- None Achievements -------------- None Challenges ------------ None Game ------ Seed SiegeActiveSlayer Manual? 0 Play Time 00:08:32 Cumulative 110.2 hours Start 2024.04.03 @ 12:42:14 End 2024.04.03 @ 12:49:28 Sessions 1 Manual Loads 0 Difficulty Rogue Special Mode None Game No. 113 Rogue 110 Adventurer 0 Explorer 3 Win Type - Total 0 Types 0/0/0/0/0/0/0/0/0 Lore% 31 Gallery% 47 Achievement% 34 Wizard Run 0 Options --------- Layout 1 ASCII 0 Keyboard 0 Movement Numpad Keybinds 0 Fullscreen 2 Font 24/Tamsyn Map View 50x35 Zoom Use 0% Tactical HUD 1 Map Filters NONE Filters NONE Steam 1 RUN: 787a431e-7e8c-4fca-975b-20775abbe735